bitfinex/quotes_BTCUSD_20241002
["timestamp","ask_amount","ask_price","bid_price","bid_amount"]
[1727901748746,0.29202266,60757.0,60756.0,0.003636]
[1727901748956,0.34134964,60757.0,60756.0,0.003636]
[1727901750450,0.29202266,60757.0,60756.0,0.003636]
[1727901750933,0.41461591,60757.0,60756.0,0.003636]
[1727901751143,0.41464905,60757.0,60756.0,0.003636]
[1727901751769,0.44045508,60757.0,60756.0,0.003636]
[1727901752042,0.44045757,60757.0,60756.0,0.003636]
[1727901752260,0.39185584,60757.0,60756.0,0.003636]
[1727901752475,0.46514312,60757.0,60756.0,0.003636]
[1727901752688,0.36717869,60757.0,60756.0,0.003636]
[1727901752909,0.44046941,60757.0,60756.0,0.003636]
[1727901753108,0.44046869,60757.0,60756.0,0.003636]
[1727901753564,0.36644238,60757.0,60756.0,0.003636]
[1727901753778,0.34063635,60757.0,60756.0,0.003636]
[1727901754009,0.19202266,60757.0,60756.0,0.139936]
[1727901754944,0.18202266,60757.0,60756.0,0.138936]
[1727901755172,0.17502266,60757.0,60756.0,0.137936]
[1727901755602,0.17302266,60757.0,60756.0,0.142936]
[1727901755849,0.17302266,60757.0,60756.0,0.145936]
[1727901756281,0.00843266,60757.0,60756.0,0.145936]
[1727901756511,0.00858706,60757.0,60756.0,0.25741962]
[1727901756724,0.000818,60759.0,60758.0,0.290987]
[1727901756941,0.000818,60759.0,60758.0,0.1264]
[1727901756942,0.165402,60759.0,60758.0,0.1264]
[1727901758245,0.265402,60759.0,60758.0,0.1264]
[1727901758482,0.265402,60759.0,60756.0,0.014636]
[1727901758483,0.16459,60757.0,60756.0,0.014636]
[1727901758686,0.16459,60757.0,60756.0,0.001636]
[1727901759112,0.19039342,60757.0,60756.0,0.001636]
[1727901759766,0.19039342,60757.0,60756.0,0.004636]
[1727901761254,0.19039342,60757.0,60756.0,0.001636]
[1727901761471,0.19039342,60757.0,60756.0,0.005636]
[1727901761680,0.19139342,60757.0,60756.0,0.011636]
[1727901761882,0.54030443,60757.0,60756.0,0.011636]
[1727901762106,0.29039342,60757.0,60756.0,0.001636]
[1727901762357,0.34074445,60757.0,60756.0,0.008636]
[1727901762566,0.34074445,60757.0,60756.0,0.014636]
[1727901763013,0.34074445,60757.0,60756.0,0.001636]
[1727901763014,0.38836635,60757.0,60756.0,0.001636]
[1727901763221,0.38836635,60757.0,60756.0,0.005636]
[1727901763445,0.33901532,60757.0,60756.0,0.005636]
[1727901763865,0.3132119,60757.0,60756.0,0.005636]
[1727901764688,0.3142119,60757.0,60756.0,0.011636]
[1727901764903,0.05035786,60757.0,60756.0,0.386128]
[1727901765121,0.000818,60759.0,60756.0,0.085836]
[1727901765336,0.000818,60759.0,60757.0,0.31928399]
[1727901765551,0.000818,60759.0,60757.0,0.1317]
[1727901765761,0.000818,60759.0,60757.0,0.296288]
[1727901765974,0.000818,60759.0,60757.0,0.1317]
[1727901766268,0.164576,60762.0,60761.0,0.1356]
[1727901768445,0.164576,60762.0,60761.0,0.1456]
[1727901768936,0.164576,60762.0,60761.0,0.1596]
[1727901769154,0.164576,60762.0,60761.0,0.1356]
[1727901769392,0.165576,60762.0,60761.0,0.1476]
[1727901769650,0.165576,60762.0,60761.0,0.1616]
[1727901770162,0.164576,60762.0,60761.0,0.1496]
[1727901770407,0.165576,60762.0,60761.0,0.1616]
[1727901770887,0.165576,60762.0,60761.0,0.1476]
[1727901771144,0.165576,60762.0,60761.0,0.1616]
[1727901771398,0.165576,60762.0,60761.0,0.1476]
[1727901771649,0.165576,60762.0,60761.0,0.1616]
[1727901771888,0.165576,60762.0,60761.0,0.1476]
[1727901772116,0.164576,60762.0,60761.0,0.1356]
[1727901772352,0.165576,60762.0,60761.0,0.1616]
[1727901773320,0.001,60762.0,60761.0,0.326179]
[1727901773592,0.000818,60766.0,60765.0,0.304268]
[1727901773824,0.000818,60766.0,60765.0,0.58567732]
[1727901774201,0.000818,60766.0,60765.0,0.66287732]
[1727901774443,0.000818,60766.0,60763.0,0.329146]
[1727901774444,0.24891101,60775.0,60772.0,0.28140932]
[1727901774687,0.24891101,60775.0,60773.0,0.1397]
[1727901774912,0.000817,60776.0,60774.0,0.0806]
[1727901775131,0.000817,60776.0,60775.0,0.164541]
[1727901775353,0.000817,60776.0,60774.0,0.0806]
[1727901776244,0.000817,60776.0,60775.0,0.011]
[1727901776872,0.165355,60776.0,60775.0,0.011]
[1727901777041,0.000817,60776.0,60775.0,0.011]
[1727901777281,0.000817,60776.0,60774.0,0.0806]
[1727901777556,0.02579245,60783.0,60776.0,0.2124]
[1727901777720,0.24891101,60803.0,60795.0,0.296487]
[1727901777721,0.24891101,60796.0,60795.0,0.296487]
[1727901777952,0.24891101,60796.0,60795.0,0.57789632]
[1727901778156,0.000817,60808.0,60801.0,0.32894]
[1727901778357,0.24891101,60804.0,60796.0,0.1777]
[1727901778498,0.000817,60808.0,60801.0,0.328941]
[1727901778705,0.000817,60808.0,60802.0,0.164466]
[1727901778935,0.000817,60808.0,60801.0,0.328941]
[1727901779136,0.000817,60808.0,60804.0,0.164461]
[1727901779505,0.000817,60808.0,60805.0,0.164458]
[1727901779761,0.000817,60808.0,60804.0,0.164462]
[1727901780307,0.000817,60808.0,60804.0,0.007]
[1727901780949,0.000817,60808.0,60805.0,0.013]
[1727901781176,0.000817,60808.0,60804.0,0.007]
[1727901781430,0.000817,60808.0,60804.0,0.018]
[1727901781692,0.000817,60808.0,60799.0,0.164473]
[1727901781920,0.000817,60808.0,60804.0,0.011]
[1727901782369,0.000817,60808.0,60804.0,0.013]
[1727901782902,0.000817,60808.0,60804.0,0.022]
[1727901783109,0.164458,60806.0,60804.0,0.013]
[1727901783333,0.16446,60805.0,60804.0,0.013]
[1727901783540,0.16446,60805.0,60804.0,0.024]
[1727901783756,0.16446,60805.0,60804.0,0.011]
[1727901784202,0.000817,60808.0,60807.0,0.264454]
[1727901784418,0.001017,60819.0,60813.0,0.298138]
[1727901784634,0.001017,60819.0,60813.0,0.67954732]
[1727901785707,0.001017,60819.0,60813.0,0.68954732]
[1727901785937,0.001017,60819.0,60816.0,0.16443]
[1727901786170,0.001017,60819.0,60816.0,0.56883932]
[1727901786872,0.001017,60819.0,60816.0,0.54583932]
[1727901787722,0.001017,60819.0,60816.0,0.55983932]
[1727901788425,0.001017,60819.0,60816.0,0.58783932]
[1727901788648,0.001017,60819.0,60818.0,0.294425]
[1727901788888,0.001017,60819.0,60818.0,0.43525507]
[1727901789104,0.001017,60819.0,60818.0,0.433225]
[1727901789318,0.001017,60819.0,60818.0,0.48358385]
[1727901789752,0.001017,60819.0,60818.0,0.81243385]
[1727901791190,0.001017,60819.0,60818.0,0.82643385]
[1727901791390,0.001017,60819.0,60818.0,0.774075]
[1727901791625,0.001017,60819.0,60818.0,0.746075]
[1727901792279,0.001017,60819.0,60818.0,0.760075]
[1727901792492,0.001017,60819.0,60818.0,0.748075]
[1727901792705,0.001017,60819.0,60818.0,0.762075]
[1727901793341,0.001017,60819.0,60818.0,0.760075]
[1727901793554,0.001017,60819.0,60818.0,0.746075]
[1727901793791,0.001017,60819.0,60818.0,0.760075]
[1727901794462,0.001017,60819.0,60818.0,0.746075]
[1727901794692,0.001017,60819.0,60818.0,0.732075]
[1727901794944,0.001017,60819.0,60818.0,0.760075]
[1727901795134,0.001017,60819.0,60818.0,0.746075]
[1727901795788,0.001017,60819.0,60818.0,0.760075]
[1727901796215,0.001017,60819.0,60818.0,0.660075]
[1727901796457,0.001017,60819.0,60818.0,0.632075]
[1727901796667,0.001017,60819.0,60818.0,0.646075]
[1727901796882,0.001017,60819.0,60818.0,0.660075]
[1727901797108,0.001017,60819.0,60818.0,0.646075]
[1727901797316,0.001017,60819.0,60818.0,0.660075]
[1727901797741,0.001017,60819.0,60818.0,0.646075]
[1727901797958,0.002017,60819.0,60818.0,0.660075]
[1727901798166,0.001017,60819.0,60818.0,0.646075]
[1727901798403,0.001017,60819.0,60818.0,0.32885]
[1727901798614,0.002017,60819.0,60818.0,0.521275]
[1727901799051,0.002017,60819.0,60818.0,0.507275]
[1727901799480,0.002017,60819.0,60818.0,0.521275]
[1727901799729,0.001017,60819.0,60818.0,0.507275]
[1727901800380,0.000817,60820.0,60819.0,0.164422]
[1727901800591,0.000817,60820.0,60819.0,0.77944871]
[1727901801026,0.000817,60820.0,60819.0,0.616262]
[1727901801673,0.000817,60820.0,60819.0,0.630262]
[1727901802988,0.000817,60820.0,60819.0,0.616262]
[1727901803196,0.000817,60820.0,60819.0,0.630262]
[1727901803401,0.000817,60820.0,60819.0,0.644262]
[1727901803638,0.000817,60820.0,60819.0,0.635262]
[1727901804350,0.000817,60823.0,60822.0,0.54582332]
[1727901804567,0.000817,60827.0,60826.0,0.187403]
[1727901804827,0.000817,60827.0,60826.0,0.616213]
[1727901805050,0.000817,60827.0,60826.0,0.744113]
[1727901805272,0.000817,60827.0,60826.0,0.746113]
[1727901805483,0.000817,60827.0,60826.0,0.744113]
[1727901806169,0.0002,60839.0,60838.0,0.16437]
[1727901806358,0.0002,60839.0,60838.0,0.92541932]
[1727901806809,0.0002,60839.0,60838.0,0.90241932]
[1727901808141,0.0002,60839.0,60838.0,0.93941932]
[1727901808591,0.0002,60839.0,60838.0,0.95241932]
[1727901809106,0.0002,60839.0,60838.0,0.93941932]
[1727901809315,0.0002,60839.0,60838.0,1.05341932]
[1727901809536,0.0002,60839.0,60838.0,1.13961932]
[1727901809756,0.00381557,60853.0,60852.0,0.44574232]
[1727901809993,0.00381557,60853.0,60852.0,0.77441232]
[1727901810216,0.00381557,60853.0,60852.0,0.32867]
[1727901810217,0.16814557,60853.0,60852.0,0.32867]
[1727901811326,0.16814557,60853.0,60852.0,0.33867]
[1727901812729,0.16814557,60853.0,60852.0,0.34767]
[1727901812959,0.26814557,60853.0,60852.0,0.34767]
[1727901813170,0.26814557,60853.0,60852.0,0.32867]
[1727901814034,0.41990739,60853.0,60852.0,0.19427]
[1727901814901,0.41990739,60853.0,60852.0,0.19527]
[1727901815368,0.31694557,60853.0,60852.0,0.19427]
[1727901815630,0.29196157,60853.0,60852.0,0.14547]
[1727901815872,0.164365,60840.0,60839.0,0.25054301]
[1727901816542,0.164365,60840.0,60839.0,0.001632]
[1727901816994,0.19013513,60840.0,60839.0,0.001632]
[1727901817206,0.19013513,60840.0,60839.0,0.002632]
[1727901817440,0.19013513,60840.0,60839.0,0.001632]
[1727901818073,0.170365,60840.0,60839.0,0.001632]
[1727901818543,0.164362,60842.0,60839.0,0.128232]
[1727901818759,0.164365,60840.0,60839.0,0.132232]
[1727901819014,0.164364,60841.0,60839.0,0.132232]
[1727901819233,0.164363,60841.0,60839.0,0.131232]
[1727901819464,0.164365,60840.0,60839.0,0.128232]
[1727901819674,0.164365,60840.0,60839.0,0.131232]
[1727901819870,0.32872,60842.0,60839.0,0.135232]
[1727901820087,0.328688,60848.0,60839.0,0.131232]
[1727901820321,0.1,60851.0,60839.0,0.137232]
[1727901820322,0.3287,60846.0,60839.0,0.137232]
[1727901820537,0.328688,60848.0,60839.0,0.131232]
[1727901820759,0.164342,60849.0,60845.0,0.164351]
[1727901821188,0.00463157,60853.0,60843.0,0.328712]
[1727901821402,0.164344,60848.0,60843.0,0.328712]
[1727901821621,0.328677,60850.0,60845.0,0.164351]
[1727901821834,0.164344,60848.0,60845.0,0.164351]
[1727901822059,0.164344,60848.0,60843.0,0.493067]
[1727901822277,0.32869,60848.0,60839.0,0.128232]
[1727901822482,0.002,60849.0,60843.0,0.001]
[1727901822745,0.164352,60846.0,60843.0,0.001]
[1727901822969,0.164352,60846.0,60845.0,0.001]
[1727901823178,0.164349,60846.0,60845.0,0.001]
[1727901823420,0.164349,60846.0,60842.0,0.164358]
[1727901823845,0.164349,60846.0,60843.0,0.164356]
[1727901824337,0.164348,60847.0,60843.0,0.164356]
[1727901824972,0.164348,60847.0,60843.0,0.165356]
[1727901825191,0.164333,60852.0,60848.0,0.164342]
[1727901825477,0.164335,60852.0,60848.0,0.164343]
[1727901825684,0.24891101,60858.0,60844.0,0.0012512]
[1727901825685,0.328674,60851.0,60844.0,0.328707]
[1727901826142,0.164341,60849.0,60846.0,0.164348]
[1727901826566,0.004,60852.0,60846.0,0.328697]
[1727901826781,0.004,60852.0,60848.0,0.164341]
[1727901827003,0.00463157,60853.0,60839.0,0.128232]
[1727901827224,0.164344,60848.0,60845.0,0.24891101]
[1727901827439,0.16434,60850.0,60842.0,0.328716]
[1727901827650,0.16434,60850.0,60846.0,0.164349]
[1727901828522,0.00463157,60853.0,60843.0,0.657424]
[1727901828743,0.00463157,60853.0,60851.0,0.164334]
[1727901828948,0.00463157,60853.0,60849.0,0.328682]
[1727901829393,0.00463157,60853.0,60848.0,0.0819]
[1727901829394,0.00463157,60853.0,60852.0,0.164333]
[1727901830718,0.00463157,60853.0,60851.0,0.164335]
[1727901830930,0.164328,60854.0,60851.0,0.164335]
[1727901830931,0.16395957,60854.0,60851.0,0.164335]
[1727901831904,0.000817,60857.0,60847.0,0.32869]
[1727901831945,0.164333,60852.0,60848.0,0.164341]
[1727901832510,0.000817,60857.0,60846.0,0.001632]
[1727901832511,0.164346,60847.0,60846.0,0.001632]
[1727901832727,0.164346,60847.0,60846.0,0.25054301]
[1727901832959,0.164346,60847.0,60846.0,0.001632]
[1727901833836,0.328679,60850.0,60846.0,0.010632]
[1727901834050,0.164343,60849.0,60846.0,0.010632]
[1727901834272,0.328657,60854.0,60846.0,0.010632]
[1727901834496,0.164346,60847.0,60846.0,0.010632]
[1727901834946,0.164346,60847.0,60846.0,0.001632]
[1727901835370,0.164346,60847.0,60846.0,0.008632]
[1727901835597,0.164346,60847.0,60846.0,0.001632]
[1727901835807,0.164346,60847.0,60846.0,0.010632]
[1727901836018,0.364346,60847.0,60846.0,0.010632]
[1727901836245,0.364346,60847.0,60846.0,0.017632]
[1727901836464,0.2,60847.0,60846.0,0.017632]
[1727901836677,0.2,60847.0,60846.0,0.181981]
[1727901836915,0.2,60847.0,60846.0,0.017632]
[1727901837362,0.2,60847.0,60846.0,0.181981]
[1727901837363,0.4,60847.0,60846.0,0.181981]
[1727901838041,0.4,60847.0,60846.0,0.46339032]
[1727901838482,0.4,60847.0,60846.0,0.66299032]
[1727901838712,0.4,60847.0,60846.0,0.381581]
[1727901840797,0.4,60847.0,60846.0,0.139632]
[1727901841245,0.564346,60847.0,60846.0,0.139632]
[1727901842132,0.4,60847.0,60846.0,0.139632]
[1727901842582,0.564346,60847.0,60846.0,0.139632]
[1727901843554,0.564346,60847.0,60846.0,0.017632]
[1727901844670,0.564346,60847.0,60846.0,0.010632]
[1727901844948,0.564346,60847.0,60846.0,0.014632]
[1727901845392,0.564346,60847.0,60846.0,0.005632]
[1727901845610,0.564346,60847.0,60846.0,0.011632]
[1727901845827,0.564346,60847.0,60846.0,0.001632]
[1727901846263,0.564346,60847.0,60846.0,0.003632]
[1727901847189,0.59011427,60847.0,60846.0,0.003632]
[1727901847749,1.04043192,60847.0,60846.0,0.003632]
[1727901848026,1.0889857,60847.0,60846.0,0.003632]
[1727901848297,1.18845583,60847.0,60846.0,0.001632]
[1727901848522,0.83813818,60847.0,60846.0,0.002632]
[1727901848764,0.69011427,60847.0,60846.0,0.001632]
[1727901848994,0.69511427,60847.0,60846.0,0.002632]
[1727901849215,0.76899588,60847.0,60846.0,0.002632]
[1727901849437,0.70011427,60847.0,60846.0,0.002632]
[1727901849653,0.76899588,60847.0,60846.0,0.002632]
[1727901849871,0.77199588,60847.0,60846.0,0.002632]
[1727901850342,0.76899588,60847.0,60846.0,0.002632]
[1727901850589,0.69011427,60847.0,60846.0,0.001632]
[1727901850813,0.69511427,60847.0,60846.0,0.002632]
[1727901851290,0.69011427,60847.0,60846.0,0.001632]
[1727901851518,0.69511427,60847.0,60846.0,0.001632]
[1727901851957,0.69611427,60847.0,60846.0,0.001632]
[1727901852173,0.69111427,60847.0,60846.0,0.001632]
[1727901852390,0.69511427,60847.0,60846.0,0.001632]
[1727901852623,0.69511427,60847.0,60846.0,0.005632]
[1727901852820,0.69411427,60847.0,60846.0,0.001632]
[1727901853043,0.69411427,60847.0,60846.0,0.005632]
[1727901853490,0.69011427,60847.0,60846.0,0.001632]
[1727901853713,0.77345325,60847.0,60846.0,0.001632]
[1727901853977,0.79669293,60847.0,60846.0,0.003632]
[1727901854210,0.747446,60847.0,60846.0,0.003632]
[1727901854470,0.86989547,60847.0,60846.0,0.001632]
[1727901854716,1.03708218,60847.0,60846.0,0.001632]
[1727901855180,0.7877758,60847.0,60846.0,0.001632]
[1727901855420,0.670346,60847.0,60846.0,0.002632]
[1727901856348,0.669346,60847.0,60846.0,0.002632]
[1727901856588,0.664346,60847.0,60846.0,0.001632]
[1727901856804,0.664346,60847.0,60846.0,0.002632]
[1727901857013,0.670346,60847.0,60846.0,0.002632]
[1727901857232,0.69911324,60847.0,60846.0,0.002632]
[1727901857863,0.69311324,60847.0,60846.0,0.001632]
[1727901858114,0.667346,60847.0,60846.0,0.001632]
[1727901858356,0.664346,60847.0,60846.0,0.002632]
[1727901858764,0.664346,60847.0,60846.0,0.004632]
[1727901859675,0.664346,60847.0,60846.0,0.002632]
[1727901859891,0.664346,60847.0,60846.0,0.007632]
[1727901860365,0.69011293,60847.0,60846.0,0.007632]
[1727901860582,0.69011293,60847.0,60846.0,0.006632]
[1727901860797,0.69011293,60847.0,60846.0,0.002632]
[1727901861231,0.69011293,60847.0,60846.0,0.001632]
[1727901861447,0.69011293,60847.0,60846.0,0.003632]
[1727901862843,0.95113298,60847.0,60846.0,0.006632]
[1727901863068,0.87724387,60847.0,60846.0,0.003632]
[1727901863290,0.92579841,60847.0,60846.0,0.003632]
[1727901863504,0.92579841,60847.0,60846.0,0.001632]
[1727901863505,0.87724387,60847.0,60846.0,0.001632]
[1727901864161,1.02526708,60847.0,60846.0,0.001632]
[1727901864844,1.10076708,60847.0,60846.0,0.001632]
[1727901865068,1.18176438,60847.0,60846.0,0.001632]
[1727901865515,1.15599745,60847.0,60846.0,0.001632]
[1727901865729,1.07500015,60847.0,60846.0,0.001632]
[1727901865975,0.15052119,60854.0,60846.0,0.001632]
[1727901865976,0.33826557,60920.0,60901.0,0.98608794]
[1727901866203,0.0753,60939.0,60901.0,0.35133094]
[1727901866204,0.74813594,60902.0,60901.0,0.35133094]
[1727901866432,0.74921843,60902.0,60901.0,0.35133094]
[1727901866659,0.164352,60919.0,60902.0,0.1]
[1727901866885,0.0002,60919.0,60902.0,0.1]
[1727901867130,0.0002,60919.0,60905.0,0.164188]
[1727901867367,0.0002,60919.0,60906.0,0.16746818]
[1727901867596,0.0002,60919.0,60911.0,0.18713094]
[1727901867826,0.0002,60919.0,60912.0,0.167448]
[1727901868282,0.0002,60919.0,60914.0,0.164165]
[1727901868525,0.0002,60919.0,60914.0,0.28544223]
[1727901868757,0.0002,60919.0,60918.0,0.47428594]
[1727901868981,0.0002,60919.0,60918.0,0.63747265]
[1727901869198,0.0002,60919.0,60918.0,0.47428594]
[1727901869636,0.0002,60919.0,60918.0,0.56704932]
[1727901870082,0.0012,60919.0,60918.0,0.57404932]
[1727901871002,0.0012,60919.0,60918.0,0.300155]
[1727901871220,0.0012,60919.0,60918.0,0.177155]
[1727901871909,0.0012,60919.0,60918.0,0.17833607]
[1727901872130,0.0012,60919.0,60918.0,0.58123039]
[1727901872366,0.0012,60919.0,60918.0,0.58004932]
[1727901873286,0.0012,60919.0,60918.0,0.177155]
[1727901874583,0.0012,60919.0,60918.0,0.171155]
[1727901875020,0.0002,60919.0,60918.0,0.164155]
[1727901875248,0.0002,60919.0,60918.0,0.171155]
[1727901875739,0.0002,60919.0,60918.0,0.185155]
[1727901875959,0.0002,60919.0,60918.0,0.45704932]
[1727901876406,0.0002,60919.0,60918.0,0.45204932]
[1727901876631,0.0002,60919.0,60918.0,0.44404932]
[1727901877317,0.0002,60919.0,60918.0,0.45804932]
[1727901877989,0.0002,60919.0,60918.0,0.47204932]
[1727901879647,0.24623062,60929.0,60924.0,0.164136]
[1727901879883,0.24623062,60929.0,60926.0,0.164132]
[1727901880136,0.24623062,60929.0,60918.0,0.30789432]
[1727901880405,0.24623062,60929.0,60923.0,0.328279]
[1727901880660,0.24623062,60929.0,60925.0,0.164134]
[1727901880898,0.24623062,60929.0,60927.0,0.16413]
[1727901881153,0.24623062,60929.0,60925.0,0.164133]
[1727901881389,0.24623062,60929.0,60926.0,0.164133]
[1727901881635,0.24623062,60929.0,60925.0,0.164134]
[1727901882160,0.24623062,60929.0,60920.0,0.328297]
[1727901882161,0.24704562,60929.0,60916.0,0.328319]
[1727901882398,0.000815,60929.0,60925.0,0.011]
[1727901882669,0.24623062,60928.0,60925.0,0.011]
[1727901882914,0.41035962,60928.0,60925.0,0.011]
[1727901883146,0.164133,60927.0,60925.0,0.011]
[1727901883363,0.164133,60927.0,60925.0,0.016]
[1727901883581,0.41036062,60928.0,60925.0,0.016]
[1727901883803,0.164133,60926.0,60925.0,0.016]
[1727901884250,0.164133,60926.0,60925.0,0.011]
[1727901884699,0.164133,60926.0,60916.0,0.164159]
[1727901884940,0.164134,60926.0,60916.0,0.168159]
[1727901885140,0.164136,60925.0,60916.0,0.168159]
[1727901885604,0.000815,60929.0,60925.0,0.008]
[1727901885605,0.24623062,60926.0,60925.0,0.008]
[1727901885849,0.24623062,60926.0,60925.0,0.004]
[1727901886072,0.24623062,60926.0,60921.0,0.164145]
[1727901886300,0.000815,60929.0,60922.0,0.164143]
[1727901886526,0.24623062,60928.0,60923.0,0.164141]
[1727901886755,0.000815,60929.0,60924.0,0.328275]
[1727901886980,0.24623062,60928.0,60927.0,0.16413]
[1727901887460,0.000815,60929.0,60927.0,0.16413]
[1727901887923,0.000815,60929.0,60928.0,0.00325349]
[1727901888177,0.000815,60929.0,60925.0,0.164135]
[1727901888423,0.000815,60929.0,60927.0,0.014]
[1727901888666,0.002815,60929.0,60927.0,0.014]
[1727901888914,0.002815,60929.0,60927.0,0.019]
[1727901889138,0.000815,60929.0,60927.0,0.019]
[1727901889369,0.000815,60929.0,60928.0,0.164128]
[1727901889602,0.000815,60929.0,60927.0,0.019]
[1727901890069,0.000815,60929.0,60927.0,0.01]
[1727901891006,0.24623062,60928.0,60927.0,0.024]
[1727901891221,0.000815,60929.0,60927.0,0.024]
[1727901891444,0.000815,60929.0,60927.0,0.038]
[1727901891657,0.000815,60929.0,60927.0,0.024]
[1727901891868,0.000815,60929.0,60927.0,0.014]
[1727901892082,0.000815,60929.0,60927.0,0.038]
[1727901892508,0.000815,60929.0,60927.0,0.027]
[1727901892940,0.000815,60929.0,60927.0,0.038]
[1727901893157,0.000815,60929.0,60928.0,0.164128]
[1727901893380,0.000815,60929.0,60927.0,0.038]
[1727901893381,0.000815,60929.0,60927.0,0.164129]
[1727901893606,0.000815,60929.0,60927.0,0.014]
[1727901893833,0.000815,60929.0,60927.0,0.026]
[1727901894259,0.000815,60929.0,60927.0,0.04]
[1727901894488,0.000815,60929.0,60927.0,0.012]
[1727901894967,0.000815,60929.0,60927.0,0.014]
[1727901895392,0.000815,60929.0,60927.0,0.028]
[1727901895895,0.164128,60928.0,60927.0,0.014]
[1727901896189,0.164128,60928.0,60927.0,0.028]
[1727901896856,0.18985813,60928.0,60927.0,0.014]
[1727901897073,0.18985813,60928.0,60927.0,0.028]
[1727901897289,0.164132,60927.0,60920.0,0.164149]
[1727901897727,0.328257,60928.0,60919.0,0.00163]
[1727901897988,0.000815,60929.0,60919.0,0.00163]
[1727901897989,0.24623062,60927.0,60919.0,0.00163]
[1727901898208,0.164149,60920.0,60919.0,0.00163]
[1727901898700,0.328283,60923.0,60920.0,0.014]
[1727901898892,0.328265,60927.0,60919.0,0.00163]
[1727901898893,0.164149,60920.0,60919.0,0.01163]
[1727901899340,0.164149,60920.0,60919.0,0.00163]
[1727901899791,0.164149,60920.0,60919.0,0.00663]
[1727901900253,0.164149,60920.0,60919.0,0.00863]
[1727901900458,0.164149,60920.0,60919.0,0.00663]
[1727901900693,0.000815,60929.0,60927.0,0.26913]
[1727901900923,0.000815,60929.0,60928.0,0.005]
[1727901901146,0.000815,60929.0,60928.0,0.264128]
[1727901902240,0.000815,60929.0,60928.0,0.164128]
[1727901902767,0.000815,60929.0,60928.0,0.014]
[1727901903701,0.000815,60929.0,60928.0,0.028]
[1727901903928,0.16494,60929.0,60928.0,0.014]
[1727901904179,0.16494,60929.0,60919.0,0.00163]
[1727901904180,0.000815,60929.0,60922.0,0.164144]
[1727901904417,0.000815,60929.0,60928.0,0.027]
[1727901904647,0.000815,60929.0,60928.0,0.014]
[1727901904876,0.000815,60929.0,60928.0,0.011]
[1727901905096,0.16494,60929.0,60928.0,0.011]
[1727901905310,0.164132,60927.0,60919.0,0.00163]
[1727901905552,0.000815,60929.0,60921.0,0.164146]
[1727901905782,0.000815,60929.0,60923.0,0.16414]
[1727901905996,0.000815,60929.0,60923.0,0.328281]
[1727901906217,0.000815,60929.0,60928.0,0.01]
[1727901907325,0.000815,60929.0,60923.0,0.014]
[1727901907774,0.000815,60929.0,60928.0,0.014]
[1727901908007,0.000815,60929.0,60923.0,0.009]
[1727901908219,0.000815,60929.0,60920.0,0.00163]
[1727901908435,0.000815,60929.0,60928.0,0.028]
[1727901908436,0.001815,60929.0,60928.0,0.028]
[1727901908871,0.000815,60929.0,60928.0,0.014]
[1727901909337,0.001815,60929.0,60928.0,0.014]
[1727901910188,0.001815,60929.0,60925.0,0.164135]
[1727901910417,0.000815,60929.0,60928.0,0.014]
[1727901910858,0.000815,60929.0,60928.0,0.028]
[1727901911085,0.000815,60929.0,60928.0,0.042]
[1727901911304,0.000815,60929.0,60928.0,0.014]
[1727901911522,0.16494,60929.0,60928.0,0.026]
[1727901911757,0.16494,60929.0,60928.0,0.04]
[1727901911981,0.16494,60929.0,60928.0,0.026]
[1727901912213,0.45242637,60929.0,60928.0,0.14871828]
[1727901912428,0.45242637,60929.0,60928.0,0.042]
[1727901912649,0.45242637,60929.0,60928.0,0.1386601]
[1727901912873,0.37734842,60929.0,60928.0,0.1386601]
[1727901913151,0.19067154,60929.0,60928.0,0.1386601]
[1727901913381,0.19067154,60929.0,60928.0,0.042]
[1727901913608,0.19067154,60929.0,60928.0,0.028]
[1727901913827,0.19067154,60929.0,60928.0,0.03]
[1727901914070,0.19067154,60929.0,60928.0,0.002]
[1727901914323,0.19067154,60929.0,60928.0,0.013]
[1727901914577,0.164128,60928.0,60927.0,0.07247961]
[1727901915458,0.02654654,60929.0,60927.0,0.04831586]
[1727901915703,0.329066,60929.0,60926.0,0.04831586]
[1727901915928,0.16413,60927.0,60926.0,0.04831586]
[1727901916568,0.328257,60928.0,60920.0,0.12234828]
[1727901916569,0.164133,60926.0,60925.0,0.04831586]
[1727901916781,0.164133,60926.0,60924.0,0.04831586]
[1727901917509,0.164133,60926.0,60922.0,0.04831586]
[1727901917510,0.16414,60924.0,60922.0,0.04831586]
[1727901917734,0.492384,60928.0,60927.0,0.008]
[1727901918194,0.328256,60928.0,60924.0,0.013]
[1727901918418,0.164137,60925.0,60924.0,0.01]
[1727901918646,0.328258,60928.0,60924.0,0.01]
[1727901918864,0.164134,60926.0,60924.0,0.01]
[1727901919092,0.164135,60926.0,60924.0,0.01]
[1727901919315,0.164136,60925.0,60924.0,0.01]
[1727901919754,0.164136,60925.0,60924.0,0.01163]
[1727901919970,0.164136,60925.0,60924.0,0.00163]
[1727901920408,0.18986819,60925.0,60924.0,0.00163]
[1727901920626,0.02573219,60925.0,60924.0,0.00163]
[1727901920888,0.18986819,60925.0,60924.0,0.00163]
[1727901921110,0.18986819,60925.0,60924.0,0.02563]
[1727901921541,0.18986819,60925.0,60924.0,0.03863]
[1727901921972,0.18986819,60925.0,60924.0,0.02763]
[1727901922923,0.18986819,60925.0,60924.0,0.00163]
[1727901923362,0.18986819,60925.0,60924.0,0.01163]
[1727901923580,0.18986819,60925.0,60924.0,0.02563]
[1727901923808,0.164136,60925.0,60924.0,0.01563]
[1727901924272,0.329076,60928.0,60924.0,0.01263]
[1727901924498,0.329075,60928.0,60924.0,0.02563]